Cogmind - Beta 13 @@@ ROGUE MODE // 2024.03.31 @ 21:22:51 Player: Isopropylpod Result: Destroyed by Y-45 Defender with Beam Rifle Performance ------------- Evolutions (2) 1000 Regions Visited (5) 1000 Robots Destroyed (16) 80 Value Destroyed (355) 355 Prototype IDs (3) 60 Alien Tech Used (0) 0 Bonus (47) 47 TOTAL SCORE: 2542 Bonus ------- Follower Combat Kills 47 Cogmind --------- Core Integrity 0/550 Matter 279/300 Energy 98/100 System Corruption 6% Temperature Cool (27) Movement Core (50) Location -8/Materials Parts ------- > --- POWER (1) -------- (None) > --- PROPULSION (4) --- (None) > --- UTILITY (4) ------ (None) > --- WEAPON (2) ------- (None) > --- INVENTORY (5) ---- Light Nuclear Core Flight Unit Hardlight Generator Splice Drone Bay (5/6) Improved Datajack Peak State ------------ > --- POWER ------------ Light Nuclear Core > --- PROPULSION ------- Flight Unit Flight Unit Flight Unit Flight Unit > --- UTILITY ---------- Small Storage Unit Improved Sensor Array Seismic Detector Splice Drone Bay > --- WEAPON ----------- EM Pulse Gun Beam Rifle > --- INVENTORY -------- Light Nuclear Core Aluminum Leg Aluminum Leg Improved Datajack [Rating: 22] Favorites ----------- Power Light Nuclear Core Engine Ion Engine Power Core Light Nuclear Core Propulsion Aluminum Leg Leg Aluminum Leg Flight Unit Flight Unit Utility Small Storage Unit Device Splice Drone Bay Storage Small Storage Unit Protection Hardened Light Armor Plating Weapon EM Pulse Gun Energy Gun EM Pulse Gun Ballistic Gun Light Assault Rifle Special Melee Weapon Improved Datajack Build | -11 -10 -10 -10 -9 -8 ------- Run | Yrd Mat Min Exi Min Mat Slots Evolved 4 | . . . . . 4 Power . | . . . . . . Propulsion 2 | . . . . . 2 Utility 2 | . . . . . 2 Weapon . | . . . . . . Parts Attached 32 | 7 2 2 . 4 17 Power 6 | 1 1 1 . . 3 Engine 2 | 1 1 . . . . Core 4 | . . 1 . . 3 Reactor . | . . . . . . Propulsion 8 | 2 . . . 1 5 Treads . | . . . . . . Leg 4 | 2 . . . 1 1 Wheel . | . . . . . . Hover . | . . . . . . Flight 4 | . . . . . 4 Utility 7 | 2 . 1 . . 4 Device 5 | 1 . 1 . . 3 Storage 1 | 1 . . . . . Processor . | . . . . . . Hackware . | . . . . . . Protection 1 | . . . . . 1 Artifact . | . . . . . . Weapon 11 | 2 1 . . 3 5 Energy Gun 6 | 1 1 . . 2 2 Energy Cannon . | . . . . . . Ballistic Gun 2 | 1 . . . . 1 Ballistic Cannon . | . . . . . . Launcher . | . . . . . . Special Weapon . | . . . . . . Impact Weapon . | . . . . . . Slashing Weapon . | . . . . . . Piercing Weapon . | . . . . . . Special Melee Weapon 3 | . . . . 1 2 Unidentified Prototypes 1 | . . 1 . . . Corrupted Parts 1 | . . . . . 1 System Corruption 4 | . . . . . 4 Parts Lost 14 | . . . . . 14 Power 3 | . . . . . 3 Propulsion 3 | . . . . . 3 Utility 4 | . . . . . 4 Weapon 4 | . . . . . 4 Highest Loss Streak 8 | . . . . . 8 To Critical Strikes . | . . . . . . Average Slot Usage (%) 96 | . 100 100 100 100 54 Core 12 | . . 12 14 14 7 Leg 26 | . 28 28 28 28 4 Device 13 | . 14 14 14 14 4 Storage 13 | . 14 14 14 14 7 Energy Gun 26 | . 28 28 28 28 11 Naked Turns 12 | . . . . . 12 Heaviest Build 23 | 14 15 22 22 23 21 Greatest Support 20 | 20 20 20 20 20 16 Greatest Overweight (x) 6 | 1 . 1 1 1 6 Average Overweight (x) . | . . . 1 . . Largest Inventory Capacity 8 | 8 8 8 8 8 8 Average Capacity 7 | 7 8 8 8 8 7 Most Carried 8 | 3 8 8 8 8 7 Average Carried 7 | 1 4 7 8 8 5 Final Capacity 8 | 8 8 8 8 8 5 Final Carried 8 | 3 8 8 8 8 5 Class Distribution -------------------- 97% | Mutant Dominant Class ---------------- Mutant | -10/Materials Mutant | -10/Mines Mutant | -10/Exiles Mutant | -9/Mines Mutant | -8/Materials Resources | -11 -10 -10 -10 -9 -8 ----------- Run | Yrd Mat Min Exi Min Mat Matter Collected 469 | 217 60 38 . 40 114 Remotely . | . . . . . . Salvage Created 607 | 93 . . . 305 209 Parts 33 | 5 . . . 20 8 Haulers Intercepted . | . . . . . . Recyclers Shooed 1 | . . . . 1 . Parts Field Recycled . | . . . . . . Retrieved Matter . | . . . . . . Parts Self-Destructed . | . . . . . . Prevented . | . . . . . . Kills | -11 -10 -10 -10 -9 -8 ------- Run | Yrd Mat Min Exi Min Mat Combat Hostiles Destroyed 12 | . . . . 8 4 Guns 9 | . . . . 8 1 AOE 3 | . . . . . 3 Classes Destroyed 7 | 2 . . . 4 1 Worker 1 | . . . . 1 . Tunneler 1 | 1 . . . . . Recycler 2 | 1 . . . 1 . Swarmer 6 | . . . . 6 . Grunt 3 | . . . . 1 2 Duelist 1 | . . . . . 1 Sentry 2 | . . . . 1 1 Best Kill Streak 2 | 1 . . . 2 2 Combat Bots Only 2 | . . . . 2 2 Max Kills in Single Turn 1 | 1 . . . 1 1 Gunslinging . | . . . . . . Exploded 1 | . . . . . 1 Melee . | . . . . . . Uniques/NPCs Destroyed . | . . . . . . Combat | -11 -10 -10 -10 -9 -8 -------- Run | Yrd Mat Min Exi Min Mat Hostile Shots Fired 125 | . . . . 63 62 Missed 38 | . . . . 21 17 Damage Taken 1765 | . . . . 412 1353 Core 642 | . . . . 78 564 Absorbed by Shields . | . . . . . . Core Remaining (%) 84 | 100 . . . 68 . Volleys Fired 79 | 13 5 . . 27 34 Largest 2 | 1 1 . . 2 1 Hottest 96 | 20 40 . . 96 56 Shots Fired 106 | 13 5 . . 54 34 Gun 106 | 13 5 . . 54 34 Cannon . | . . . . . . Launcher . | . . . . . . Special . | . . . . . . Kinetic 19 | 13 . . . . 6 Thermal 23 | . . . . 12 11 Explosive . | . . . . . . Electromagnetic 64 | . 5 . . 42 17 Robot Hit Streak 6 | 6 . . . 5 5 Robot Miss Streak 5 | 1 5 . . 4 2 Penetration Max . | . . . . . . Secondary Targets 2 | . . . . 2 . Max Gunslinging Chain 1 | . . . . 1 . Shots Hit Robots 62 | 10 . . . 28 24 Core Hits 26 | 4 . . . 13 9 Critical Kills . | . . . . . . Critical Parts Destroyed . | . . . . . . Critical Strikes 4 | . . . . 2 2 Burn 3 | . . . . 1 2 Corrupt 1 | . . . . 1 . Melee Attacks 2 | . . . . 2 . Impact . | . . . . . . Slashing . | . . . . . . Piercing . | . . . . . . Sneak Attacks 2 | . . . . 2 . Combat Hostiles 2 | . . . . 2 . Follow-up Attacks . | . . . . . . Damage Inflicted 1064 | 89 2 12 . 344 617 Guns 788 | 79 . . . 344 365 Cannons . | . . . . . . Explosions 252 | . . . . . 252 Melee . | . . . . . . Ramming 24 | 10 2 12 . . . Kinetic 172 | 79 . . . . 93 Thermal 459 | . . . . 89 370 Explosive . | . . . . . . Electromagnetic 409 | . . . . 255 154 Impact . | . . . . . . Slashing . | . . . . . . Piercing . | . . . . . . Highest Corruption 6 | . . . . . 6 Average Corruption 4 | . . . . . 4 Corruption Purged . | . . . . . . Corruption Blocked . | . . . . . . Effects 5 | . . . . . 5 Message Errors 1 | . . . . . 1 Matter Fused 1 | . . . . . 1 Heat Flow Errors 2 | . . . . . 2 Alerts 1 | . . . . . 1 Overload Shots . | . . . . . . Overflow Damage 33 | . . . . . 33 Projectiles . | . . . . . . Explosions 33 | . . . . . 33 Melee . | . . . . . . Knockbacks . | . . . . . . Impact . | . . . . . . Kinetic . | . . . . . . Secondary . | . . . . . . Self-Inflicted Damage 82 | . . . . . 82 Shots 2 | . . . . . 2 Rammed . | . . . . . . Targets Rammed 3 | 1 1 1 . . . Kicked 3 | 1 1 1 . . . Crushed . | . . . . . . Highest Temperature 288 | . . . . 288 253 Average Temperature 89 | . . . . 103 67 Received Heat Transfer 306 | . . . . 102 204 Effects 1 | . . . . 1 . Energy Bleed 1 | . . . . 1 . Siege Activations . | . . . . . . Robots Corrupted . | . . . . . . Combat Hostiles . | . . . . . . Parts Fried 2 | . . . . 1 1 Impact Corruptions . | . . . . . . Robots Melted . | . . . . . . Combat Hostiles . | . . . . . . Parts Melted . | . . . . . . Heat Transferred 940 | . . . . 296 644 Parts Sabotaged . | . . . . . . Parts Stolen . | . . . . . . Parts Stripped . | . . . . . . Power Chain Reactions 3 | . . . . . 3 Alert | -11 -10 -10 -10 -9 -8 ------- Run | Yrd Mat Min Exi Min Mat Peak Influence 152 | 10 72 27 . 108 152 Initial 41 | . 6 27 . . 41 Average 39 | 3 40 27 . 36 93 Maximum Alert Level . | . . . . . . Low Security (%) 100 | 100 100 100 . 100 100 Level 1 . | . . . . . . Level 2 . | . . . . . . Level 3 . | . . . . . . Level 4 . | . . . . . . Level 5 . | . . . . . . High Security . | . . . . . . Max Security . | . . . . . . Squads Dispatched 3 | . 1 . . . 2 Investigation 1 | . 1 . . . . Extermination . | . . . . . . Reinforcement 2 | . . . . . 2 Assault . | . . . . . . Garrison . | . . . . . . Intercept . | . . . . . . Searches Triggered . | . . . . . . Construction Impeded . | . . . . . . Haulers Reinforced . | . . . . . . Active Scanning Responses . | . . . . . . Cargo Convoy Interrupts . | . . . . . . Stealth | -11 -10 -10 -10 -9 -8 --------- Run | Yrd Mat Min Exi Min Mat Distress Signals 3 | . 1 . . . 2 Communications Jammed . | . . . . . . Distress Signals . | . . . . . . Times Spotted 33 | . 3 . . 16 14 Peak Tracking Total 7 | . 2 . . 4 7 Tactical Retreats 2 | . . . . 1 1 Traps | -11 -10 -10 -10 -9 -8 ------- Run | Yrd Mat Min Exi Min Mat Traps Triggered 2 | . 1 . . . 1 Indirectly . | . . . . . . Trap Hack Attempts . | . . . . . . Triggered . | . . . . . . Disarmed . | . . . . . . Reprogrammed . | . . . . . . Reused . | . . . . . . Traps Extracted . | . . . . . . Installed . | . . . . . . Triggered . | . . . . . . Machines | -11 -10 -10 -10 -9 -8 ---------- Run | Yrd Mat Min Exi Min Mat Machines Disabled 1 | . . . . . 1 Max in Single Turn 1 | . . . . . 1 Machines Repaired . | . . . . . . Machines Dismantled . | . . . . . . Machines Sabotaged . | . . . . . . Overloaded Fab Kills . | . . . . . . Hacking | -11 -10 -10 -10 -9 -8 --------- Run | Yrd Mat Min Exi Min Mat Machines Accessed 7 | . 2 2 1 . 2 Terminals 2 | . 1 . . . 1 Fabricators . | . . . . . . Repair Stations . | . . . . . . Recycling Units 1 | . 1 . . . . Scanalyzers 1 | . . . . . 1 Garrison Access . | . . . . . . Total Hacks 37 | . 3 2 23 . 9 Successful 34 | . 2 2 23 . 7 Failed 3 | . 1 . . . 2 Catastrophic 2 | . . . . . 2 Database Lockouts . | . . . . . . Manual 6 | . 2 . 1 . 3 Terminals 6 | . 2 . . . 4 Fabricators . | . . . . . . Repair Stations . | . . . . . . Recycling Units 1 | . 1 . . . . Scanalyzers 5 | . . . . . 5 Garrison Access . | . . . . . . Terminal Hacks 28 | . 1 2 23 . 2 Record 23 | . . . 23 . . Prototype ID Bank 1 | . 1 . . . . Open Door 2 | . . 2 . . . Branch Access Points 1 | . . . . . 1 Zone Layout 1 | . . . . . 1 Fabricator Hacks . | . . . . . . Repair Station Hacks . | . . . . . . Recycling Unit Hacks 1 | . 1 . . . . Report Inventory 1 | . 1 . . . . Scanalyzer 5 | . . . . . 5 Insert Component 3 | . . . . . 3 Analyze 2 | . . . . . 2 Garrison Access Hacks . | . . . . . . Unauthorized Hacks . | . . . . . . Terminals . | . . . . . . Fabricators . | . . . . . . Repair Stations . | . . . . . . Recycling Units . | . . . . . . Scanalyzers . | . . . . . . Garrison Access . | . . . . . . Data Cores Recovered . | . . . . . . Used . | . . . . . . Hacking Detections 3 | . 1 . . . 2 Full Trace Events . | . . . . . . Feedback Events . | . . . . . . Feedback Blocked . | . . . . . . Robot Schematics Acquired . | . . . . . . Robots Built . | . . . . . . Authchips . | . . . . . . Time . | . . . . . . Total Robot Build Rating . | . . . . . . Part Schematics Acquired 2 | . . . . . 2 Parts Built . | . . . . . . Authchips . | . . . . . . Time . | . . . . . . Total Part Build Rating . | . . . . . . Parts Repaired . | . . . . . . Time . | . . . . . . Parts Recycled . | . . . . . . Recycled Matter . | . . . . . . Retrieved Matter . | . . . . . . Retrieved Components . | . . . . . . Parts Scanalyzed 2 | . . . . . 2 Part Schematics Acquired 2 | . . . . . 2 Parts Damaged . | . . . . . . Bothacking | -11 -10 -10 -10 -9 -8 ------------ Run | Yrd Mat Min Exi Min Mat Used RIF Installer . | . . . . . . Robots Hacked . | . . . . . . Non-combat . | . . . . . . Combat . | . . . . . . Robot Hacks Applied . | . . . . . . Relay Couplers Released . | . . . . . . Fabnet Peak Effective % . | . . . . . . Robots Rewired . | . . . . . . Allies Hacked . | . . . . . . Hacks Repelled . | . . . . . . Allies | -11 -10 -10 -10 -9 -8 -------- Run | Yrd Mat Min Exi Min Mat Total Allies 1 | . . . . 1 . Largest Group 1 | . . . . 1 . Highest-Rated Group 8 | . . . . 8 . Highest-Rated Ally 8 | . . . . 8 . Total Orders . | . . . . . . Ally Attacks 14 | . . . . 14 . Total Damage 79 | . . . . 79 . Kills 4 | . . . . 4 . Allies Corrupted . | . . . . . . Allies Melted . | . . . . . . Intel | -11 -10 -10 -10 -9 -8 ------- Run | Yrd Mat Min Exi Min Mat Robot Analysis Total . | . . . . . . Derelict Logs Recovered 1 | . . . . 1 . Drone Launches 13 | . . . . 13 . Drone Recoveries 12 | . . . . 12 . Exploration | -11 -10 -10 -10 -9 -8 ------------- Run | Yrd Mat Min Exi Min Mat Turns Passed 3569 | 110 201 356 1296 1371 235 Spaces Moved 1963 | 60 152 259 683 672 137 Core 25 | 4 . . . . 21 Treads . | . . . . . . Legs 1861 | 56 152 259 683 672 39 Wheels . | . . . . . . Hover . | . . . . . . Flight 77 | . . . . . 77 Fastest Speed 31 | 50 120 120 190 120 31 Average Speed 168 | 120 120 132 190 189 100 Slowest Speed 350 | 190 120 190 190 190 350 Overloaded Moves . | . . . . . . Propulsion Burnouts . | . . . . . . Robots Hopped . | . . . . . . Cave-ins Triggered . | . . . . . . Exploration Rate (%) 48 | 5 31 59 78 96 19 Regions Visited 5 Branch Regions 3 Pre-discovered Areas 1 | . . . 1 . . Known Exits Taken . | . . . . . . Unknown Exits Taken 5 | 1 1 1 1 1 . Scrap Searched 1 | . . . . 1 . Spaces Dug . | . . . . . . Terrain Destroyed 17 | . . . . . 17 Melee . | . . . . . . Projectile . | . . . . . . AOE 17 | . . . . . 17 Terrain Rammed . | . . . . . . Walls Destroyed . | . . . . . . Machines Disabled . | . . . . . . Actions | -11 -10 -10 -10 -9 -8 --------- Run | Yrd Mat Min Exi Min Mat Total 2119 | 83 165 275 682 712 202 Wait 9 | . . 3 . 6 . Move 1959 | 60 151 258 682 671 137 Hop . | . . . . . . Pick Up 18 | 3 5 5 . . 5 Fast Attach 14 | 7 1 1 . 2 3 Attach 13 | . . 1 . . 12 Detach 6 | . . . . . 6 Swap 5 | . 1 . . 2 2 Drop 12 | . 1 6 . 2 3 Fire 79 | 13 5 . . 27 34 Melee 2 | . . . . 2 . Ram . | . . . . . . Kick 2 | . 1 1 . . . Crush . | . . . . . . Escape Stasis . | . . . . . . Rewire . | . . . . . . Trap . | . . . . . . Miscellaneous . | . . . . . . Route ------- -11/Scrapyard -10/Materials (discovered 2 exits: [*Mat] / *Min) -10/Mines -10/Exiles (discovered 2 exits: [*Min x2]) -9/Mines -8/Materials (discovered 1 exit: Sto) History --------- Turn | Location | Event 23 | -11/Scrapyard | Discovered new exit (range 14) 111 | -11/Scrapyard | Entered Materials 212 | -10/Materials | Met 8R-AWN 222 | -10/Materials | Discovered new exit (range 15) 292 | -10/Materials | Discovered new exit (range 14) 304 | -10/Materials | Build established: Mutant 312 | -10/Materials | Entered Mines 313 | -10/Mines | Followed 8R-AWN into the Mines 343 | -10/Mines | Met a Derelict who couldn't figure out how to use a Trap Extractor 570 | -10/Mines | Found the Drone Emporium 578 | -10/Mines | Found Prototype Device 578 | -10/Mines | Identified Splice Drone Bay 657 | -10/Mines | Discovered new exit (range 5) 668 | -10/Mines | Entered Exiles 716 | -10/Exiles | Discovered new exit (range 15) 739 | -10/Exiles | Welcomed by 8R-AWN 779 | -10/Exiles | Met EX-HEX 919 | -10/Exiles | Met EX-DEC 1104 | -10/Exiles | Discovered new exit (range 12) 1239 | -10/Exiles | Visited The Gauntlet 1537 | -10/Exiles | Learned location of Zion (-6) 1964 | -10/Exiles | Entered Mines 1995 | -9/Mines | A weapon hastily lodged in a ceiling crevice suddenly fell to the ground 3260 | -9/Mines | Discovered new exit (range 12) 3335 | -9/Mines | Entered Materials 3335 | -8/Materials | Evolved 4 slots: Propulsion x2, Utility x2 3336 | -8/Materials | Identified exit to Storage 3436 | -8/Materials | Lost 6 parts (1p2n2u1w) 3547 | -8/Materials | Core integrity fell below 50% 3555 | -8/Materials | Core integrity fell below 20% 3570 | -8/Materials | Destroyed by Y-45 Defender with Beam Rifle Last Messages --------------- U-05 Engineer lays Concrete. Knocked back. Acquired 2 matter. X-57 Shotgunner heat damages Broken Hpw. Shotgun. X-57 Shotgunner overheating. U-05 Engineer lays Concrete. X-57 Shotgunner heat damages core (-6). U-05 Engineer builds a Wall. Knocked back. R-06 Scavenger collects Lgt. Nuclear Core. U-05 Engineer lays Concrete. U-05 Engineer builds a Wall. Hvy. Assault Rifle destroyed. Critical hit (Burn: +37). U-05 Engineer builds a Wall. U-05 Engineer builds a Door. U-05 Engineer lays Concrete. Slug penetrates Door. Critical hit (Burn: +37). Map ----- +----------------------------------------------------+ | | | | | | | | | | | | | | | | | | | | | | | | | | | | | | | | | | | | | | | ????????????????????????????????????? | | ????????????????????????????????????? | | ????????????????????????????????????? | | ????????##??????????????????????????? | | ???????## ########??????????????????? | | ???????# !!! % #???????????######## | | ???????# !Y @ #???????????# | | ???????# !! """ #???????????# | | ???????# """ #????????#### | | ???????# """ #???????## # | | ???????# #??????? + | | ???????# "Y" #???????## # > | | ???????# """ #????????# # | | ???????########""####+##### # | | ?????????????# / ! | | ?????????????# # | | ?????????????####"#""#% ### ## | | ?????????######"""""%% ###+######### | | ?????????# H " ## ! #? | | ?????????# %! =" ## / #? | | ?????????# " "# #? | | ?????????# = % " "# """ """ #? | | ?????????# # ## """ """ #? | | ?????????# + ## """ """ #? | | ?????????# % #% ## ## | | ?????????#""""" ## ##* " | | ?????????##" # %####+####### | | ??????????#" + | | ??????????## # % #### | | ???????????# """"" # ##+#+##+##" | | ???????????# ## ## ## | +----------------------------------------------------+ Best States ------------- Heat Dissipation 31 Energy Generation 14 Energy Capacity 250 Matter Stores 300 Matter Capacity 300 Sight Range 16 Robot Scan Range 15 Terrain Scan Density 10 Armor Coverage 150 Evasion (%) 63 Item Schematics ----------------- Lgt. Nuclear Core | -8/Materials | Scanalyzed Beam Rifle | -8/Materials | Scanalyzed Robot Schematics ------------------ None Fabricated ------------ Nothing Alien Tech Used ----------------- None Achievements -------------- Error 47 Factory Defaults Challenges ------------ None Game ------ Seed InsulationPropulsionPlating Manual? 0 Play Time 00:27:43 Cumulative 7.4 hours Start 2024.03.31 @ 20:55:49 End 2024.03.31 @ 21:22:51 Sessions 1 Manual Loads 0 Difficulty Rogue Special Mode None Game No. 16 Rogue 16 Adventurer 0 Explorer 0 Win Type - Total 0 Types 0/0/0/0/0/0/0/0/0 Lore% 10 Gallery% 13 Achievement% 14 Wizard Run 0 Options --------- Layout 1 ASCII 0 Keyboard 0 Movement Arrows Keybinds 0 Fullscreen 1 Font 32/SmallcapsGlow Map View 50x35 Zoom Use 0% Tactical HUD 0 Map Filters NONE Filters NONE Steam 1 RUN: 48d5b925-a779-4c83-b25e-5608ddf0b9f6